[Event "*** Titled Tuesday Blitz"]
[Site "Chess.com"]
[Date "2020.04.28"]
[Round "3"]
[White "RianKapriaga"]
[Black "XiaoKangZhong"]
[Result "1-0"]
[WhiteElo "2194"]
[BlackElo "2356"]
[TimeControl "180+1"]
[EndTime "10:29:28 PDT"]
[Termination "RianKapriaga won by resignation"]

1. d4 {[%clk 0:02:59.5]} 1... Nf6 {[%clk 0:02:41.2]} 2. Nf3 {[%clk 0:02:58.8]}
2... g6 {[%clk 0:02:28]} 3. c4 {[%clk 0:02:57.1]} 3... Bg7 {[%clk 0:02:27.6]} 4.
Nc3 {[%clk 0:02:57.2]} 4... d5 {[%clk 0:02:28]} 5. cxd5 {[%clk 0:02:56.4]} 5...
Nxd5 {[%clk 0:02:28.9]} 6. Bd2 {[%clk 0:02:49.7]} 6... O-O {[%clk 0:02:24.5]} 7.
e3 {[%clk 0:02:49.2]} 7... c5 {[%clk 0:02:13.1]} 8. Bc4 {[%clk 0:02:46.3]} 8...
Nb6 {[%clk 0:02:07.6]} 9. Be2 {[%clk 0:02:42.8]} 9... cxd4 {[%clk 0:02:05.6]}
10. exd4 {[%clk 0:02:42.8]} 10... Nc6 {[%clk 0:02:04.9]} 11. Be3 {[%clk
0:02:39.2]} 11... Nd5 {[%clk 0:02:00.4]} 12. Nxd5 {[%clk 0:02:35.9]} 12... Qxd5
{[%clk 0:02:01.3]} 13. O-O {[%clk 0:02:31.5]} 13... Rd8 {[%clk 0:01:59]} 14. Rc1
{[%clk 0:02:18.9]} 14... Qxa2 {[%clk 0:01:36.2]} 15. Bc4 {[%clk 0:02:08.1]}
15... Qxb2 {[%clk 0:01:35.2]} 16. Ng5 {[%clk 0:02:06.3]} 16... e6 {[%clk
0:01:20]} 17. Qf3 {[%clk 0:02:04.1]} 17... Rf8 {[%clk 0:01:19.6]} 18. Rb1 {[%clk
0:01:17]} 18... Nxd4 {[%clk 0:01:11.4]} 19. Qh3 {[%clk 0:01:06.5]} 19... h6
{[%clk 0:00:43.6]} 20. Rxb2 {[%clk 0:01:02.9]} 20... hxg5 {[%clk 0:00:43]} 21.
Bxd4 {[%clk 0:01:01.1]} 21... Bxd4 {[%clk 0:00:40.9]} 22. Rd2 {[%clk 0:01:01.5]}
22... Bg7 {[%clk 0:00:39]} 23. Qg3 {[%clk 0:00:59.7]} 23... Bh6 {[%clk
0:00:38.3]} 24. Rfd1 {[%clk 0:00:58.9]} 24... b5 {[%clk 0:00:36.3]} 25. Bb3
{[%clk 0:00:54.3]} 25... a5 {[%clk 0:00:31.7]} 26. Rd8 {[%clk 0:00:50.9]} 26...
Bb7 {[%clk 0:00:30.9]} 27. Rxf8+ {[%clk 0:00:47.9]} 27... Rxf8 {[%clk
0:00:29.2]} 28. Qc7 {[%clk 0:00:47.9]} 28... a4 {[%clk 0:00:26.1]} 29. Qxb7
{[%clk 0:00:46.4]} 29... axb3 {[%clk 0:00:25.9]} 30. Qxb5 {[%clk 0:00:46.7]}
30... Bg7 {[%clk 0:00:25.1]} 31. Qxb3 {[%clk 0:00:46.2]} 31... Bf6 {[%clk
0:00:25.8]} 32. g3 {[%clk 0:00:46.2]} 32... Kg7 {[%clk 0:00:25.7]} 33. Rd7
{[%clk 0:00:45.1]} 33... Re8 {[%clk 0:00:25]} 34. Kg2 {[%clk 0:00:45]} 34... Be5
{[%clk 0:00:24.4]} 35. h3 {[%clk 0:00:44.4]} 35... Bf6 {[%clk 0:00:24.6]} 36.
Qb7 {[%clk 0:00:42.9]} 36... Rf8 {[%clk 0:00:24]} 37. Qc7 {[%clk 0:00:42.5]}
37... Kg8 {[%clk 0:00:22.6]} 38. Qd6 {[%clk 0:00:39.9]} 38... Re8 {[%clk
0:00:20.9]} 39. Rc7 {[%clk 0:00:39.7]} 39... Kg7 {[%clk 0:00:20.9]} 40. Qd7
{[%clk 0:00:39.7]} 40... Re7 {[%clk 0:00:19.7]} 41. Qc6 {[%clk 0:00:39]} 41...
Re8 {[%clk 0:00:19.9]} 42. Rc8 {[%clk 0:00:39]} 42... Re7 {[%clk 0:00:17.6]} 43.
Ra8 {[%clk 0:00:38.8]} 43... Be5 {[%clk 0:00:17.1]} 44. Qc8 {[%clk 0:00:38.1]}
44... Kf6 {[%clk 0:00:15.7]} 45. g4 {[%clk 0:00:35.2]} 1-0

[Event "*** Titled Tuesday Blitz"]
[Site "Chess.com"]
[Date "2020.04.28"]
[Round "3"]
[White "GM_dmitrij"]
[Black "axvesik"]
[Result "1-0"]
[WhiteElo "2985"]
[BlackElo "2466"]
[TimeControl "180+1"]
[EndTime "10:29:29 PDT"]
[Termination "GM_dmitrij won by checkmate"]

1. e4 {[%clk 0:03:00.9]} 1... e6 {[%clk 0:02:59.9]} 2. d4 {[%clk 0:02:59.6]}
2... d5 {[%clk 0:03:00.8]} 3. Nd2 {[%clk 0:03:00.3]} 3... c5 {[%clk 0:03:00.4]}
4. exd5 {[%clk 0:03:00.6]} 4... Qxd5 {[%clk 0:03:00.7]} 5. Ngf3 {[%clk
0:03:01.1]} 5... cxd4 {[%clk 0:03:00.8]} 6. Bc4 {[%clk 0:03:01.6]} 6... Qd7
{[%clk 0:03:00.6]} 7. O-O {[%clk 0:03:02.5]} 7... Nc6 {[%clk 0:03:01.1]} 8. Nb3
{[%clk 0:03:02.7]} 8... a6 {[%clk 0:03:01.4]} 9. Nbxd4 {[%clk 0:03:02.7]} 9...
Nxd4 {[%clk 0:03:02.1]} 10. Nxd4 {[%clk 0:03:03.6]} 10... Qc7 {[%clk 0:03:02.4]}
11. Qe2 {[%clk 0:02:42.7]} 11... Bd6 {[%clk 0:02:55.9]} 12. h3 {[%clk
0:02:39.5]} 12... Ne7 {[%clk 0:02:47.7]} 13. c3 {[%clk 0:02:38.2]} 13... O-O
{[%clk 0:02:41.3]} 14. Rd1 {[%clk 0:02:31.1]} 14... b5 {[%clk 0:02:14.2]} 15.
Bd3 {[%clk 0:02:31.1]} 15... Bb7 {[%clk 0:02:14.2]} 16. h4 {[%clk 0:02:09.2]}
16... e5 {[%clk 0:01:50.9]} 17. Nb3 {[%clk 0:02:06.1]} 17... f5 {[%clk
0:01:42.9]} 18. Bg5 {[%clk 0:01:59.6]} 18... h6 {[%clk 0:01:40.5]} 19. Bd2
{[%clk 0:01:44.3]} 19... Rae8 {[%clk 0:01:31.2]} 20. a4 {[%clk 0:01:23.6]} 20...
e4 {[%clk 0:01:22.7]} 21. Bc2 {[%clk 0:01:20.7]} 21... f4 {[%clk 0:01:12]} 22.
Nd4 {[%clk 0:01:00.2]} 22... f3 {[%clk 0:01:09.6]} 23. gxf3 {[%clk 0:00:49.2]}
23... Ng6 {[%clk 0:01:02.2]} 24. fxe4 {[%clk 0:00:32.1]} 24... Nxh4 {[%clk
0:00:48.1]} 25. Qg4 {[%clk 0:00:29.3]} 25... Qe7 {[%clk 0:00:45.3]} 26. Be3
{[%clk 0:00:19.9]} 26... Qf6 {[%clk 0:00:29.1]} 27. Kf1 {[%clk 0:00:14.3]} 27...
Bc5 {[%clk 0:00:16.6]} 28. axb5 {[%clk 0:00:11.5]} 28... axb5 {[%clk 0:00:16]}
29. Ke2 {[%clk 0:00:09.5]} 29... Bc8 {[%clk 0:00:15]} 30. Qg3 {[%clk 0:00:06.9]}
30... Bd6 {[%clk 0:00:14.7]} 31. Qg1 {[%clk 0:00:04.9]} 31... Be5 {[%clk
0:00:13.5]} 32. Bb3+ {[%clk 0:00:02.6]} 32... Kh8 {[%clk 0:00:13.1]} 33. Kd3
{[%clk 0:00:02.7]} 33... Nf3 {[%clk 0:00:12.6]} 34. Nxf3 {[%clk 0:00:01.6]}
34... Qxf3 {[%clk 0:00:12.7]} 35. Kc2 {[%clk 0:00:02.5]} 35... Qxe4+ {[%clk
0:00:12.3]} 36. Kc1 {[%clk 0:00:03.4]} 36... Bf4 {[%clk 0:00:12.3]} 37. Bc2
{[%clk 0:00:03.3]} 37... Bxe3+ {[%clk 0:00:10.1]} 38. fxe3 {[%clk 0:00:04.2]}
38... Qxe3+ {[%clk 0:00:09.4]} 39. Qxe3 {[%clk 0:00:05.1]} 39... Rxe3 {[%clk
0:00:09.8]} 40. Ra8 {[%clk 0:00:05]} 40... Re2 {[%clk 0:00:09.2]} 41. Rd2 {[%clk
0:00:04.1]} 41... Rxd2 {[%clk 0:00:07.1]} 42. Kxd2 {[%clk 0:00:05]} 42... Bd7
{[%clk 0:00:07.3]} 43. Rxf8# {[%clk 0:00:04.3]} 1-0

[Event "*** Titled Tuesday Blitz"]
[Site "Chess.com"]
[Date "2020.04.28"]
[Round "3"]
[White "TheMightyBishops"]
[Black "Ave_Mariia"]
[Result "0-1"]
[WhiteElo "1997"]
[BlackElo "2288"]
[TimeControl "180+1"]
[EndTime "10:29:29 PDT"]
[Termination "Ave_Mariia won by checkmate"]

1. e4 {[%clk 0:03:00.8]} 1... c5 {[%clk 0:02:59.7]} 2. a3 {[%clk 0:03:00.4]}
2... e5 {[%clk 0:02:52.3]} 3. Nc3 {[%clk 0:02:57.8]} 3... Nc6 {[%clk 0:02:50.6]}
4. g3 {[%clk 0:02:53.4]} 4... g6 {[%clk 0:02:47.2]} 5. Bg2 {[%clk 0:02:53.5]}
5... Bg7 {[%clk 0:02:47.6]} 6. d3 {[%clk 0:02:53.4]} 6... Nge7 {[%clk
0:02:47.6]} 7. Be3 {[%clk 0:02:52.8]} 7... d6 {[%clk 0:02:46.7]} 8. Qd2 {[%clk
0:02:53]} 8... Nd4 {[%clk 0:02:43.7]} 9. f3 {[%clk 0:02:35.3]} 9... f5 {[%clk
0:02:37.9]} 10. Bg5 {[%clk 0:02:34.6]} 10... h6 {[%clk 0:02:24]} 11. Be3 {[%clk
0:02:31.8]} 11... Be6 {[%clk 0:02:20.2]} 12. Rb1 {[%clk 0:02:18.2]} 12... a5
{[%clk 0:02:10.9]} 13. f4 {[%clk 0:01:52.7]} 13... fxe4 {[%clk 0:01:44.3]} 14.
dxe4 {[%clk 0:01:42.9]} 14... Nec6 {[%clk 0:01:33.4]} 15. Nd5 {[%clk 0:01:26.2]}
15... Bxd5 {[%clk 0:00:57.6]} 16. exd5 {[%clk 0:01:25.7]} 16... Ne7 {[%clk
0:00:57.6]} 17. b3 {[%clk 0:01:15.9]} 17... Nef5 {[%clk 0:00:53.1]} 18. Bf2
{[%clk 0:01:12.5]} 18... O-O {[%clk 0:00:51.7]} 19. c3 {[%clk 0:01:12.4]} 19...
Nb5 {[%clk 0:00:46.3]} 20. a4 {[%clk 0:01:09.9]} 20... Nc7 {[%clk 0:00:41.2]}
21. Ne2 {[%clk 0:00:58]} 21... exf4 {[%clk 0:00:40.6]} 22. Nxf4 {[%clk
0:00:46.8]} 22... Re8+ {[%clk 0:00:40.2]} 23. Kf1 {[%clk 0:00:46.7]} 23... Qf6
{[%clk 0:00:40.1]} 24. Rc1 {[%clk 0:00:30.9]} 24... b5 {[%clk 0:00:31.2]} 25.
Kg1 {[%clk 0:00:20.1]} 25... c4 {[%clk 0:00:26]} 26. axb5 {[%clk 0:00:20]} 26...
Nxb5 {[%clk 0:00:23.3]} 27. Ne6 {[%clk 0:00:20.1]} 27... Nxc3 {[%clk 0:00:19.7]}
28. Nxg7 {[%clk 0:00:20.2]} 28... Ne2+ {[%clk 0:00:18.2]} 29. Kf1 {[%clk
0:00:18.2]} 29... Kxg7 {[%clk 0:00:18.1]} 30. Bf3 {[%clk 0:00:12.4]} 30... Nxc1
{[%clk 0:00:14.7]} 31. Kg2 {[%clk 0:00:09.2]} 31... Nd3 {[%clk 0:00:13.9]} 32.
bxc4 {[%clk 0:00:07.7]} 32... Nxf2 {[%clk 0:00:14]} 33. Qxf2 {[%clk 0:00:07.7]}
33... Ne3+ {[%clk 0:00:14.3]} 34. Kh3 {[%clk 0:00:06.1]} 34... Qf5+ {[%clk
0:00:13.6]} 35. Kh4 {[%clk 0:00:05]} 35... g5+ {[%clk 0:00:12.7]} 36. Kh5 {[%clk
0:00:03.2]} 36... Qg6# {[%clk 0:00:13]} 0-1

[Event "*** Titled Tuesday Blitz"]
[Site "Chess.com"]
[Date "2020.04.28"]
[Round "3"]
[White "AnnaChessLook"]
[Black "CarlosRBorn"]
[Result "0-1"]
[WhiteElo "2256"]
[BlackElo "2677"]
[TimeControl "180+1"]
[EndTime "10:29:30 PDT"]
[Termination "CarlosRBorn won by checkmate"]

1. d4 {[%clk 0:03:00.9]} 1... Nf6 {[%clk 0:02:59.9]} 2. c4 {[%clk 0:02:56.7]}
2... e6 {[%clk 0:03:00.3]} 3. Nf3 {[%clk 0:02:56.1]} 3... b6 {[%clk 0:03:00.5]}
4. g3 {[%clk 0:02:55.1]} 4... Bb7 {[%clk 0:03:01.1]} 5. Bg2 {[%clk 0:02:55.2]}
5... Be7 {[%clk 0:03:01.3]} 6. O-O {[%clk 0:02:55.9]} 6... O-O {[%clk
0:03:01.6]} 7. Re1 {[%clk 0:02:56.8]} 7... c5 {[%clk 0:02:58.9]} 8. d5 {[%clk
0:02:54.7]} 8... exd5 {[%clk 0:02:57.9]} 9. Nh4 {[%clk 0:02:48.2]} 9... g6
{[%clk 0:02:49.5]} 10. cxd5 {[%clk 0:02:46.5]} 10... d6 {[%clk 0:02:49.2]} 11.
Nc3 {[%clk 0:02:45.4]} 11... a6 {[%clk 0:02:46.2]} 12. a4 {[%clk 0:02:44.4]}
12... Nbd7 {[%clk 0:02:41]} 13. e4 {[%clk 0:02:42.4]} 13... Re8 {[%clk
0:02:41.2]} 14. f4 {[%clk 0:02:38]} 14... Bf8 {[%clk 0:02:36.1]} 15. Be3 {[%clk
0:02:24.2]} 15... Rb8 {[%clk 0:02:29.7]} 16. Qc2 {[%clk 0:02:19.5]} 16... Ng4
{[%clk 0:02:22.4]} 17. Bd2 {[%clk 0:02:11.6]} 17... Bg7 {[%clk 0:02:22.9]} 18.
h3 {[%clk 0:02:02.7]} 18... Ngf6 {[%clk 0:02:00.5]} 19. Nf3 {[%clk 0:01:49.4]}
19... Qc7 {[%clk 0:01:47.2]} 20. Kh2 {[%clk 0:01:40.3]} 20... Re7 {[%clk
0:01:45.6]} 21. Re2 {[%clk 0:01:36.4]} 21... Rbe8 {[%clk 0:01:45.5]} 22. Rae1
{[%clk 0:01:36.9]} 22... Qb8 {[%clk 0:01:42.1]} 23. Qd3 {[%clk 0:01:33.8]} 23...
Qa8 {[%clk 0:01:32]} 24. g4 {[%clk 0:01:32.6]} 24... b5 {[%clk 0:01:31.6]} 25.
axb5 {[%clk 0:01:31.9]} 25... axb5 {[%clk 0:01:32.5]} 26. g5 {[%clk 0:01:27.4]}
26... Nh5 {[%clk 0:01:18.2]} 27. h4 {[%clk 0:00:53.7]} 27... b4 {[%clk 0:01:11]}
28. Nb1 {[%clk 0:00:47.4]} 28... Ba6 {[%clk 0:01:10.5]} 29. Qc2 {[%clk
0:00:47.4]} 29... Bxe2 {[%clk 0:01:10.4]} 30. Rxe2 {[%clk 0:00:48.3]} 30... f5
{[%clk 0:01:07.2]} 31. Ne1 {[%clk 0:00:43.6]} 31... fxe4 {[%clk 0:01:04]} 32.
Rxe4 {[%clk 0:00:43.3]} 32... Rxe4 {[%clk 0:01:02.6]} 33. Bxe4 {[%clk
0:00:44.2]} 33... Nf8 {[%clk 0:00:58.2]} 34. Ng2 {[%clk 0:00:36.4]} 34... Qc8
{[%clk 0:00:57]} 35. Bf3 {[%clk 0:00:35]} 35... Qd7 {[%clk 0:00:50.3]} 36. Bxh5
{[%clk 0:00:32.8]} 36... gxh5 {[%clk 0:00:50.5]} 37. f5 {[%clk 0:00:29]} 37...
Be5+ {[%clk 0:00:50.7]} 38. Kh1 {[%clk 0:00:28.5]} 38... Qb5 {[%clk 0:00:46.2]}
39. Qd1 {[%clk 0:00:24.2]} 39... Qd3 {[%clk 0:00:44.7]} 40. f6 {[%clk
0:00:19.5]} 40... Ng6 {[%clk 0:00:40.2]} 41. Qe1 {[%clk 0:00:16.5]} 41... Kf7
{[%clk 0:00:37.8]} 42. Qd1 {[%clk 0:00:11.9]} 42... Bd4 {[%clk 0:00:34.5]} 43.
Kh2 {[%clk 0:00:09.7]} 43... Re2 {[%clk 0:00:30.5]} 44. Qf1 {[%clk 0:00:08.5]}
44... Be5+ {[%clk 0:00:29.3]} 45. Kh1 {[%clk 0:00:08.5]} 45... Qh3+ {[%clk
0:00:28.1]} 46. Kg1 {[%clk 0:00:09.1]} 46... Qh2# {[%clk 0:00:28.1]} 0-1

[Event "*** Titled Tuesday Blitz"]
[Site "Chess.com"]
[Date "2020.04.28"]
[Round "3"]
[White "GianmarcoVaR"]
[Black "eljanov"]
[Result "0-1"]
[WhiteElo "2558"]
[BlackElo "2887"]
[TimeControl "180+1"]
[EndTime "10:29:31 PDT"]
[Termination "eljanov won on time"]

1. d4 {[%clk 0:03:00.3]} 1... Nf6 {[%clk 0:02:59.3]} 2. c4 {[%clk 0:02:58.9]}
2... e6 {[%clk 0:02:59.6]} 3. g3 {[%clk 0:02:58.4]} 3... d5 {[%clk 0:02:57.2]}
4. Nf3 {[%clk 0:02:54.3]} 4... Bb4+ {[%clk 0:02:57.5]} 5. Bd2 {[%clk 0:02:54.1]}
5... Be7 {[%clk 0:02:58.1]} 6. Bg2 {[%clk 0:02:53.1]} 6... O-O {[%clk
0:02:58.3]} 7. O-O {[%clk 0:02:53.5]} 7... Nbd7 {[%clk 0:02:58.2]} 8. Qc2 {[%clk
0:02:50.2]} 8... c6 {[%clk 0:02:56.4]} 9. Bf4 {[%clk 0:02:47.3]} 9... a5 {[%clk
0:02:56.7]} 10. Nbd2 {[%clk 0:02:45]} 10... Nh5 {[%clk 0:02:50.3]} 11. cxd5
{[%clk 0:01:29.3]} 11... Nxf4 {[%clk 0:02:45.8]} 12. gxf4 {[%clk 0:01:23.6]}
12... exd5 {[%clk 0:02:43.9]} 13. e3 {[%clk 0:01:24]} 13... Nf6 {[%clk
0:02:34.5]} 14. Ne5 {[%clk 0:01:20.5]} 14... g6 {[%clk 0:02:34.8]} 15. Bf3
{[%clk 0:01:15.9]} 15... Bf5 {[%clk 0:02:34]} 16. Qd1 {[%clk 0:01:16.2]} 16...
Ne8 {[%clk 0:02:25.2]} 17. Qe2 {[%clk 0:01:14.9]} 17... Nd6 {[%clk 0:02:23.2]}
18. Bg4 {[%clk 0:01:12.5]} 18... Qc8 {[%clk 0:02:16]} 19. Rac1 {[%clk
0:01:09.4]} 19... a4 {[%clk 0:02:11.1]} 20. Bxf5 {[%clk 0:01:04.3]} 20... Qxf5
{[%clk 0:02:10.1]} 21. Qg4 {[%clk 0:01:01.2]} 21... Ra5 {[%clk 0:01:59.8]} 22.
Kg2 {[%clk 0:00:44.5]} 22... Rb5 {[%clk 0:01:53.1]} 23. Qxf5 {[%clk 0:00:42]}
23... Nxf5 {[%clk 0:01:54]} 24. Rc2 {[%clk 0:00:37.1]} 24... Bb4 {[%clk
0:01:48]} 25. Ndf3 {[%clk 0:00:35.5]} 25... Be7 {[%clk 0:01:36.3]} 26. Rfc1
{[%clk 0:00:28.6]} 26... Ra8 {[%clk 0:01:35.1]} 27. Nd3 {[%clk 0:00:27.6]} 27...
Nd6 {[%clk 0:01:33]} 28. Nfe5 {[%clk 0:00:27.4]} 28... f6 {[%clk 0:01:32.4]} 29.
Nf3 {[%clk 0:00:18.2]} 29... Kf7 {[%clk 0:01:28.7]} 30. Nd2 {[%clk 0:00:17.6]}
30... Rb6 {[%clk 0:01:18.9]} 31. Kf3 {[%clk 0:00:17.5]} 31... Ra5 {[%clk
0:01:11.7]} 32. Rg1 {[%clk 0:00:13.6]} 32... Nf5 {[%clk 0:01:06.5]} 33. Rgc1
{[%clk 0:00:13.3]} 33... Rab5 {[%clk 0:01:05.9]} 34. Ke2 {[%clk 0:00:12.7]}
34... Ra6 {[%clk 0:01:05.6]} 35. Nb1 {[%clk 0:00:12.6]} 35... Ra8 {[%clk
0:01:00.2]} 36. Nc3 {[%clk 0:00:12.4]} 36... Rb6 {[%clk 0:00:59]} 37. Nd1 {[%clk
0:00:10.5]} 37... Nd6 {[%clk 0:00:58]} 38. Nc5 {[%clk 0:00:09.9]} 38... Nc4
{[%clk 0:00:57.4]} 39. Nd3 {[%clk 0:00:09.9]} 39... Ra5 {[%clk 0:00:55.2]} 40.
Nc3 {[%clk 0:00:09.6]} 40... Ra8 {[%clk 0:00:44.3]} 41. Nxa4 {[%clk 0:00:09.6]}
41... Rxa4 {[%clk 0:00:41.7]} 42. b3 {[%clk 0:00:10]} 42... Nxe3 {[%clk
0:00:40.3]} 43. fxe3 {[%clk 0:00:06.1]} 43... Ra3 {[%clk 0:00:40.5]} 44. Nb2
{[%clk 0:00:02.4]} 44... Rxa2 {[%clk 0:00:39.4]} 45. Na4 {[%clk 0:00:02.4]}
45... Rxc2+ {[%clk 0:00:38.9]} 46. Rxc2 {[%clk 0:00:03.3]} 46... Rxb3 {[%clk
0:00:39.3]} 47. Nc5 {[%clk 0:00:02.5]} 47... Bxc5 {[%clk 0:00:39]} 48. dxc5
{[%clk 0:00:02.2]} 48... Ke6 {[%clk 0:00:39.1]} 49. Ra2 {[%clk 0:00:02.4]} 49...
Kf5 {[%clk 0:00:39]} 0-1

[Event "*** Titled Tuesday Blitz"]
[Site "Chess.com"]
[Date "2020.04.28"]
[Round "3"]
[White "dukicz123"]
[Black "VqquyenCFT"]
[Result "0-1"]
[WhiteElo "2485"]
[BlackElo "2214"]
[TimeControl "180+1"]
[EndTime "10:29:31 PDT"]
[Termination "VqquyenCFT won by checkmate"]

1. e4 {[%clk 0:03:00.9]} 1... c5 {[%clk 0:02:59.8]} 2. Nf3 {[%clk 0:03:00.5]}
2... d6 {[%clk 0:03:00.1]} 3. d4 {[%clk 0:03:01.2]} 3... cxd4 {[%clk 0:03:01]}
4. Nxd4 {[%clk 0:03:02.1]} 4... Nf6 {[%clk 0:03:01.3]} 5. Nc3 {[%clk 0:03:02.8]}
5... g6 {[%clk 0:03:02]} 6. Be3 {[%clk 0:03:02.9]} 6... Bg7 {[%clk 0:03:02.3]}
7. f3 {[%clk 0:03:03.6]} 7... O-O {[%clk 0:03:01]} 8. Qd2 {[%clk 0:03:04.2]}
8... Nc6 {[%clk 0:03:01.5]} 9. Bc4 {[%clk 0:03:04.8]} 9... a6 {[%clk 0:02:59]}
10. O-O-O {[%clk 0:03:03.8]} 10... Na5 {[%clk 0:02:59]} 11. Bb3 {[%clk
0:03:03.2]} 11... Qc7 {[%clk 0:02:53.3]} 12. h4 {[%clk 0:03:00.2]} 12... Nxb3+
{[%clk 0:02:49]} 13. cxb3 {[%clk 0:02:36.1]} 13... h5 {[%clk 0:02:41.9]} 14. Kb1
{[%clk 0:02:35.6]} 14... b5 {[%clk 0:02:38.8]} 15. Rc1 {[%clk 0:02:35.8]} 15...
Qb7 {[%clk 0:02:34.4]} 16. g4 {[%clk 0:02:32.4]} 16... hxg4 {[%clk 0:02:32]} 17.
h5 {[%clk 0:02:32.4]} 17... e5 {[%clk 0:02:32.4]} 18. Nde2 {[%clk 0:01:36.4]}
18... gxf3 {[%clk 0:02:31.1]} 19. Ng3 {[%clk 0:01:36.7]} 19... Bg4 {[%clk
0:02:23.2]} 20. Bh6 {[%clk 0:01:34]} 20... b4 {[%clk 0:01:28.5]} 21. Nd5 {[%clk
0:01:21.3]} 21... Nxd5 {[%clk 0:01:17.5]} 22. Bxg7 {[%clk 0:01:09.9]} 22... Nf4
{[%clk 0:01:08.1]} 23. Bxf8 {[%clk 0:01:04.8]} 23... Rxf8 {[%clk 0:01:03.6]} 24.
hxg6 {[%clk 0:01:05]} 24... fxg6 {[%clk 0:01:01]} 25. Qxd6 {[%clk 0:01:05.2]}
25... Qb5 {[%clk 0:00:56.3]} 26. Rh8+ {[%clk 0:00:33.7]} 26... Kxh8 {[%clk
0:00:53.9]} 27. Qxf8+ {[%clk 0:00:33.9]} 27... Kh7 {[%clk 0:00:53.8]} 28. Rc7+
{[%clk 0:00:20.5]} 28... Bd7 {[%clk 0:00:53.5]} 29. Qf7+ {[%clk 0:00:20.6]}
29... Kh6 {[%clk 0:00:53.6]} 30. Qxd7 {[%clk 0:00:18.5]} 30... Qxd7 {[%clk
0:00:49.5]} 31. Rxd7 {[%clk 0:00:18.6]} 31... Kg5 {[%clk 0:00:47]} 32. Rd6
{[%clk 0:00:16.5]} 32... Kh4 {[%clk 0:00:46.4]} 33. Nf1 {[%clk 0:00:15.7]} 33...
g5 {[%clk 0:00:46.6]} 34. Rxa6 {[%clk 0:00:11.9]} 34... g4 {[%clk 0:00:46.6]}
35. Nd2 {[%clk 0:00:12.4]} 35... Kg3 {[%clk 0:00:38.3]} 36. a3 {[%clk
0:00:12.6]} 36... Nd3 {[%clk 0:00:35.3]} 37. axb4 {[%clk 0:00:08.1]} 37... Nxb4
{[%clk 0:00:34.8]} 38. Ra4 {[%clk 0:00:09]} 38... Nd3 {[%clk 0:00:34.7]} 39. b4
{[%clk 0:00:09.4]} 39... Kf2 {[%clk 0:00:33.1]} 40. b5 {[%clk 0:00:09.8]} 40...
g3 {[%clk 0:00:33.6]} 41. Ra3 {[%clk 0:00:07.5]} 41... g2 {[%clk 0:00:32.2]} 42.
Rxd3 {[%clk 0:00:07.7]} 42... g1=Q+ {[%clk 0:00:32]} 43. Kc2 {[%clk 0:00:08.4]}
43... Ke2 {[%clk 0:00:31.1]} 44. Nxf3 {[%clk 0:00:05.7]} 44... Qc5+ {[%clk
0:00:28.8]} 45. Rc3 {[%clk 0:00:05.9]} 45... Qxb5 {[%clk 0:00:28.8]} 46. Nd2
{[%clk 0:00:05.9]} 46... Qa4+ {[%clk 0:00:26.1]} 47. Nb3 {[%clk 0:00:04.4]}
47... Qxe4+ {[%clk 0:00:25.6]} 48. Kc1 {[%clk 0:00:04]} 48... Qh1+ {[%clk
0:00:25.3]} 49. Kc2 {[%clk 0:00:04.2]} 49... Qd1# {[%clk 0:00:26.2]} 0-1

[Event "*** Titled Tuesday Blitz"]
[Site "Chess.com"]
[Date "2020.04.28"]
[Round "3"]
[White "amiralfio"]
[Black "suneebaker"]
[Result "1-0"]
[WhiteElo "2496"]
[BlackElo "2237"]
[TimeControl "180+1"]
[EndTime "10:29:31 PDT"]
[Termination "amiralfio won on time"]

1. d4 {[%clk 0:03:00.9]} 1... Nf6 {[%clk 0:02:59.2]} 2. Bf4 {[%clk 0:02:56]}
2... d5 {[%clk 0:02:57.4]} 3. e3 {[%clk 0:02:55.5]} 3... e6 {[%clk 0:02:54.2]}
4. Nf3 {[%clk 0:02:54.6]} 4... Bd6 {[%clk 0:02:53.6]} 5. Bg3 {[%clk 0:02:53.9]}
5... c5 {[%clk 0:02:52.7]} 6. Nbd2 {[%clk 0:02:53.3]} 6... Nc6 {[%clk
0:02:52.2]} 7. c3 {[%clk 0:02:52.2]} 7... b6 {[%clk 0:02:47.4]} 8. Bb5 {[%clk
0:02:46.4]} 8... Bb7 {[%clk 0:02:46.4]} 9. Ne5 {[%clk 0:02:42.6]} 9... Rc8
{[%clk 0:02:24.9]} 10. Qa4 {[%clk 0:02:29.5]} 10... Bxe5 {[%clk 0:02:23.1]} 11.
Bxe5 {[%clk 0:02:30.3]} 11... O-O {[%clk 0:02:14.2]} 12. Bg3 {[%clk 0:01:58.1]}
12... Nh5 {[%clk 0:01:53.8]} 13. Nf3 {[%clk 0:01:43.1]} 13... cxd4 {[%clk
0:01:11.9]} 14. exd4 {[%clk 0:01:27.6]} 14... Na5 {[%clk 0:01:04.1]} 15. Bd3
{[%clk 0:01:10.3]} 15... Nc4 {[%clk 0:00:59.9]} 16. Qc2 {[%clk 0:01:06.8]} 16...
f5 {[%clk 0:00:59.4]} 17. O-O {[%clk 0:00:49.8]} 17... Qe7 {[%clk 0:00:45.3]}
18. Rae1 {[%clk 0:00:42.6]} 18... Nd6 {[%clk 0:00:32.2]} 19. Bh4 {[%clk
0:00:30.9]} 19... Qd7 {[%clk 0:00:22.5]} 20. Ne5 {[%clk 0:00:31.1]} 20... Qe8
{[%clk 0:00:21.5]} 21. f3 {[%clk 0:00:12.3]} 21... Nf4 {[%clk 0:00:20.3]} 22.
Bg3 {[%clk 0:00:08.5]} 22... Nxd3 {[%clk 0:00:18.8]} 23. Qxd3 {[%clk 0:00:09.4]}
23... Qh5 {[%clk 0:00:16.7]} 24. h3 {[%clk 0:00:08.4]} 24... Rfe8 {[%clk
0:00:14.8]} 25. Qe3 {[%clk 0:00:07.2]} 25... Ba6 {[%clk 0:00:13]} 26. Rf2 {[%clk
0:00:07.1]} 26... Nc4 {[%clk 0:00:12.9]} 27. Nxc4 {[%clk 0:00:07.2]} 27... Bxc4
{[%clk 0:00:12.7]} 28. a3 {[%clk 0:00:06.7]} 28... Bb3 {[%clk 0:00:12.1]} 29.
Be5 {[%clk 0:00:07]} 29... Qf7 {[%clk 0:00:07.2]} 30. g4 {[%clk 0:00:06.5]}
30... Rf8 {[%clk 0:00:05.4]} 31. gxf5 {[%clk 0:00:06.6]} 31... Qxf5 {[%clk
0:00:04.8]} 32. Rg2 {[%clk 0:00:06.1]} 32... Rf7 {[%clk 0:00:04.8]} 33. Kh2
{[%clk 0:00:04.3]} 33... Bc4 {[%clk 0:00:04.5]} 34. Reg1 {[%clk 0:00:03.8]}
34... g6 {[%clk 0:00:02.6]} 35. Qh6 {[%clk 0:00:04.2]} 1-0